[Event "MČR v bleskovém šachu družstev 2019"]
[Site "Teplice, Czech Republic"]
[Date "2019.09.14"]
[Round "5.1"]
[White "Liska, Jiri"]
[Black "Kociscak, Jiri"]
[Result "0-1"]
[TimeControl "3 mim. + 2 s"]
[WhiteTitle "FM"]
[BlackTitle "IM"]
[BlackFideId "322121"]
[WhiteElo "2241"]
[BlackElo "2417"]

1. Nf3 {[%clk 00:03:01]} {[%emt 00:00:01]} d5 {[%clk 00:03:03]} {[%emt
00:00:02]} 2. d4 {[%clk 00:03:02]} {[%emt 00:00:02]} e6 {[%clk 00:03:02]}
{[%emt 00:00:02]} 3. c4 {[%clk 00:03:01]} {[%emt 00:00:02]} c5 {[%clk
00:03:03]} {[%emt 00:00:01]} 4. cxd5 {[%clk 00:02:53]} {[%emt 00:00:11]} exd5
{[%clk 00:03:03]} {[%emt 00:00:01]} 5. Nc3 {[%clk 00:02:51]} {[%emt 00:00:04]}
Nc6 {[%clk 00:03:04]} {[%emt 00:00:02]} 6. Be3 {[%clk 00:02:28]} {[%emt
00:00:25]} c4 {[%clk 00:02:40]} {[%emt 00:00:27]} 7. Bf4 {[%clk 00:02:11]}
{[%emt 00:00:18]} Nf6 {[%clk 00:02:33]} {[%emt 00:00:08]} 8. e3 {[%clk
00:02:04]} {[%emt 00:00:10]} Bd6 {[%clk 00:02:34]} {[%emt 00:00:01]} 9. Bg3
{[%clk 00:02:01]} {[%emt 00:00:05]} O-O {[%clk 00:02:25]} {[%emt 00:00:11]} 10.
Ne5 {[%clk 00:01:51]} {[%emt 00:00:12]} Re8 {[%clk 00:02:14]} {[%emt 00:00:13]}
11. f4 {[%clk 00:01:08]} {[%emt 00:00:45]} Bb4 {[%clk 00:01:59]} {[%emt
00:00:17]} 12. Be2 {[%clk 00:01:02]} {[%emt 00:00:08]} Ne4 {[%clk 00:01:59]}
{[%emt 00:00:02]} 13. Rc1 {[%clk 00:00:46]} {[%emt 00:00:18]} f6 {[%clk
00:01:56]} {[%emt 00:00:06]} 14. Nxc6 {[%clk 00:00:38]} {[%emt 00:00:10]} bxc6
{[%clk 00:01:56]} {[%emt 00:00:01]} 15. Bf2 {[%clk 00:00:22]} {[%emt 00:00:19]}
Qe7 {[%clk 00:01:41]} {[%emt 00:00:17]} 16. Bg1 {[%clk 00:00:15]} {[%emt
00:00:08]} Rb8 {[%clk 00:01:35]} {[%emt 00:00:08]} 17. Qc2 {[%clk 00:00:12]}
{[%emt 00:00:05]} Bf5 {[%clk 00:01:31]} {[%emt 00:00:05]} 18. g4 {[%clk
00:00:08]} {[%emt 00:00:07]} Nxc3 {[%clk 00:01:27]} {[%emt 00:00:06]} 19. gxf5
{[%clk 00:00:04]} {[%emt 00:00:06]} Nxa2+ {[%clk 00:01:22]} {[%emt 00:00:07]}
20. Kf1 {[%clk 00:00:05]} Nxc1 {[%clk 00:01:21]} {[%emt 00:00:03]} 21. Qxc1
{[%clk 00:00:06]} {[%emt 00:00:01]} Qe4 {[%clk 00:01:22]} {[%emt 00:00:01]} 0-1

[Event "MČR v bleskovém šachu družstev 2019"]
[Site "Teplice, Czech Republic"]
[Date "2019.09.14"]
[Round "5.2"]
[White "Polak, Tomas"]
[Black "Vltavsky, Vladimir"]
[Result "0-1"]
[TimeControl "3 mim. + 2 s"]
[WhiteTitle "GM"]
[WhiteFideId "300560"]
[WhiteElo "2510"]
[BlackElo "2252"]

1. d4 {[%clk 00:03:02]} {[%emt 00:00:01]} Nf6 {[%clk 00:03:04]} 2. c4 {[%clk
00:03:03]} e6 {[%clk 00:03:05]} 3. Nf3 {[%clk 00:03:04]} {[%emt 00:00:01]} b6
{[%clk 00:03:06]} {[%emt 00:00:01]} 4. g3 {[%clk 00:03:06]} Bb7 {[%clk
00:03:06]} 5. Bg2 {[%clk 00:03:07]} Be7 {[%clk 00:03:05]} {[%emt 00:00:04]} 6.
O-O {[%clk 00:03:06]} {[%emt 00:00:03]} O-O {[%clk 00:03:06]} {[%emt 00:00:01]}
7. Nc3 {[%clk 00:03:08]} Ne4 {[%clk 00:03:07]} 8. Qc2 {[%clk 00:03:07]} {[%emt
00:00:05]} Nxc3 {[%clk 00:03:07]} {[%emt 00:00:02]} 9. bxc3 {[%clk 00:03:08]}
{[%emt 00:00:01]} f5 {[%clk 00:02:45]} {[%emt 00:00:25]} 10. d5 {[%clk
00:03:04]} {[%emt 00:00:06]} Na6 {[%clk 00:02:39]} {[%emt 00:00:07]} 11. Bf4
{[%clk 00:03:02]} {[%emt 00:00:04]} Nc5 {[%clk 00:02:33]} {[%emt 00:00:09]} 12.
Rad1 {[%clk 00:03:02]} {[%emt 00:00:02]} d6 {[%clk 00:02:23]} {[%emt 00:00:11]}
13. dxe6 {[%clk 00:02:58]} {[%emt 00:00:06]} Nxe6 {[%clk 00:02:24]} 14. Bc1
{[%clk 00:02:45]} {[%emt 00:00:15]} Be4 {[%clk 00:02:23]} {[%emt 00:00:03]} 15.
Qd2 {[%clk 00:02:43]} {[%emt 00:00:04]} Qe8 {[%clk 00:02:18]} {[%emt 00:00:07]}
16. Rfe1 {[%clk 00:02:39]} {[%emt 00:00:06]} h6 {[%clk 00:02:15]} {[%emt
00:00:06]} 17. Nd4 {[%clk 00:02:34]} {[%emt 00:00:07]} Nc5 {[%clk 00:02:11]}
{[%emt 00:00:05]} 18. f3 {[%clk 00:02:26]} {[%emt 00:00:10]} Bb7 {[%clk
00:02:07]} {[%emt 00:00:07]} 19. Ba3 {[%clk 00:02:26]} {[%emt 00:00:02]} Bg5
{[%clk 00:02:04]} {[%emt 00:00:05]} 20. e3 {[%clk 00:02:23]} {[%emt 00:00:05]}
Qe7 {[%clk 00:01:52]} {[%emt 00:00:14]} 21. h4 {[%clk 00:02:13]} {[%emt
00:00:12]} Bf6 {[%clk 00:01:46]} {[%emt 00:00:08]} 22. Nxf5 {[%clk 00:02:13]}
{[%emt 00:00:02]} Qe5 {[%clk 00:01:43]} {[%emt 00:00:05]} 23. e4 {[%clk
00:02:09]} {[%emt 00:00:06]} Qxc3 {[%clk 00:01:41]} {[%emt 00:00:04]} 24. Qxc3
{[%clk 00:02:02]} {[%emt 00:00:09]} Bxc3 {[%clk 00:01:42]} {[%emt 00:00:01]} 25.
Re3 {[%clk 00:02:03]} Bf6 {[%clk 00:01:39]} {[%emt 00:00:05]} 26. f4 {[%clk
00:01:57]} {[%emt 00:00:09]} Rfe8 {[%clk 00:01:37]} {[%emt 00:00:05]} 27. Bxc5
{[%clk 00:01:46]} {[%emt 00:00:13]} bxc5 {[%clk 00:01:10]} {[%emt 00:00:28]} 28.
e5 {[%clk 00:01:45]} {[%emt 00:00:02]} Bxg2 {[%clk 00:01:08]} {[%emt 00:00:05]}
29. exf6 {[%clk 00:01:44]} {[%emt 00:00:04]} Rxe3 {[%clk 00:01:07]} {[%emt
00:00:03]} 30. Nxe3 {[%clk 00:01:43]} {[%emt 00:00:02]} Bf3 {[%clk 00:01:08]}
{[%emt 00:00:01]} 31. Rf1 {[%clk 00:01:40]} {[%emt 00:00:05]} Be2 {[%clk
00:01:04]} {[%emt 00:00:06]} 32. Rf2 {[%clk 00:01:32]} {[%emt 00:00:10]} Bd3
{[%clk 00:01:05]} {[%emt 00:00:01]} 33. fxg7 {[%clk 00:01:32]} {[%emt
00:00:02]} Kxg7 {[%clk 00:01:06]} 34. Rb2 {[%clk 00:01:32]} {[%emt 00:00:03]}
Re8 {[%clk 00:01:05]} {[%emt 00:00:03]} 35. Kf2 {[%clk 00:01:33]} a5 {[%clk
00:00:59]} {[%emt 00:00:08]} 36. Rb7 {[%clk 00:01:33]} {[%emt 00:00:02]} Re7
{[%clk 00:01:01]} {[%emt 00:00:01]} 37. g4 {[%clk 00:01:23]} {[%emt 00:00:11]}
Rf7 {[%clk 00:00:54]} {[%emt 00:00:09]} 38. Kf3 {[%clk 00:01:23]} {[%emt
00:00:02]} Re7 {[%clk 00:00:54]} {[%emt 00:00:02]} 39. f5 {[%clk 00:01:20]}
{[%emt 00:00:05]} Be4+ {[%clk 00:00:54]} {[%emt 00:00:02]} 40. Kf4 {[%clk
00:01:21]} {[%emt 00:00:01]} Bxb7 {[%emt 00:00:02]} 0-1

[Event "MČR v bleskovém šachu družstev 2019"]
[Site "Teplice, Czech Republic"]
[Date "2019.09.14"]
[Round "5.3"]
[White "Marsalek, Zdenek"]
[Black "Stocek, Jiri"]
[Result "0-1"]
[TimeControl "3 mim. + 2 s"]
[BlackTitle "GM"]
[BlackFideId "304760"]
[WhiteElo "2272"]
[BlackElo "2505"]

1. d4 {[%clk 00:03:03]} {[%emt 00:02:58]} Nf6 {[%clk 00:03:03]} {[%emt
00:00:02]} 2. Nf3 {[%clk 00:03:05]} {[%emt 00:00:01]} c5 {[%clk 00:03:01]}
{[%emt 00:00:03]} 3. g3 {[%clk 00:03:04]} {[%emt 00:00:03]} cxd4 {[%clk
00:03:01]} {[%emt 00:00:02]} 4. Nxd4 {[%clk 00:03:04]} {[%emt 00:00:02]} d5
{[%clk 00:02:59]} {[%emt 00:00:04]} 5. Bg2 {[%clk 00:03:05]} {[%emt 00:00:02]}
e5 {[%clk 00:02:58]} {[%emt 00:00:03]} 6. Nb3 {[%clk 00:03:05]} {[%emt
00:00:01]} h6 {[%clk 00:02:57]} {[%emt 00:00:03]} 7. c4 {[%clk 00:03:05]}
{[%emt 00:00:03]} d4 {[%clk 00:02:57]} {[%emt 00:00:02]} 8. O-O {[%clk
00:03:03]} {[%emt 00:00:04]} Nc6 {[%clk 00:02:55]} {[%emt 00:00:04]} 9. e3
{[%clk 00:03:03]} {[%emt 00:00:02]} Bg4 {[%clk 00:02:47]} {[%emt 00:00:11]} 10.
f3 {[%clk 00:02:58]} {[%emt 00:00:07]} Be6 {[%clk 00:02:46]} {[%emt 00:00:03]}
11. exd4 {[%clk 00:02:52]} {[%emt 00:00:08]} Bxc4 {[%clk 00:02:29]} {[%emt
00:00:18]} 12. Re1 {[%clk 00:02:46]} {[%emt 00:00:08]} Bb4 {[%clk 00:02:28]}
{[%emt 00:00:03]} 13. Nc3 {[%clk 00:02:33]} {[%emt 00:00:15]} O-O {[%clk
00:02:14]} {[%emt 00:00:16]} 14. dxe5 {[%clk 00:02:29]} {[%emt 00:00:07]} Qxd1
{[%clk 00:02:05]} {[%emt 00:00:11]} 15. Rxd1 {[%clk 00:02:28]} {[%emt
00:00:03]} Nxe5 {[%clk 00:02:03]} {[%emt 00:00:04]} 16. Be3 {[%clk 00:02:00]}
{[%emt 00:00:30]} Nd3 {[%emt 00:00:27]} 17. Na4 {[%clk 00:01:08]} {[%emt
00:00:45]} Rfe8 {[%clk 00:01:06]} {[%emt 00:00:44]} 18. Bd4 {[%clk 00:01:01]}
{[%emt 00:00:09]} Rad8 {[%clk 00:00:53]} {[%emt 00:00:15]} 19. Bxf6 {[%clk
00:00:39]} {[%emt 00:00:24]} gxf6 {[%clk 00:00:52]} {[%emt 00:00:03]} 20. Bf1
{[%clk 00:00:35]} {[%emt 00:00:06]} b5 {[%clk 00:00:39]} {[%emt 00:00:15]} 21.
Bxd3 {[%clk 00:00:35]} {[%emt 00:00:02]} Bxd3 {[%clk 00:00:38]} {[%emt
00:00:04]} 22. Nac5 {[%clk 00:00:35]} {[%emt 00:00:02]} Bc4 {[%clk 00:00:31]}
{[%emt 00:00:08]} 23. Ne4 {[%clk 00:00:33]} {[%emt 00:00:05]} Kg7 {[%clk
00:00:25]} {[%emt 00:00:09]} 24. Rac1 {[%clk 00:00:27]} {[%emt 00:00:08]} f5
{[%clk 00:00:19]} {[%emt 00:00:08]} 25. Nc3 {[%clk 00:00:26]} {[%emt 00:00:02]}
Bxc3 {[%clk 00:00:14]} {[%emt 00:00:07]} 26. bxc3 {[%clk 00:00:27]} {[%emt
00:00:01]} Rxd1+ {[%emt 00:00:03]} 27. Rxd1 Re3 {[%clk 00:00:13]} {[%emt
00:00:02]} 28. Nd4 {[%clk 00:00:26]} {[%emt 00:00:05]} Kf6 {[%clk 00:00:13]}
{[%emt 00:00:02]} 29. Rc1 {[%clk 00:00:26]} {[%emt 00:00:02]} Bxa2 {[%clk
00:00:11]} {[%emt 00:00:04]} 30. Ra1 {[%clk 00:00:27]} Bc4 {[%clk 00:00:10]}
{[%emt 00:00:03]} 31. Ra6+ {[%clk 00:00:28]} {[%emt 00:00:01]} Ke5 {[%clk
00:00:07]} {[%emt 00:00:05]} 32. Rxa7 {[%clk 00:00:29]} {[%emt 00:00:02]} Rxc3
{[%clk 00:00:07]} {[%emt 00:00:02]} 33. Nc6+ {[%clk 00:00:28]} {[%emt
00:00:02]} Kd6 {[%clk 00:00:08]} {[%emt 00:00:02]} 34. Nd4 {[%clk 00:00:28]}
{[%emt 00:00:02]} Kc5 {[%clk 00:00:08]} {[%emt 00:00:02]} 35. Nxf5 {[%clk
00:00:28]} {[%emt 00:00:02]} Rxf3 {[%clk 00:00:08]} {[%emt 00:00:02]} 36. g4
{[%clk 00:00:26]} {[%emt 00:00:03]} h5 {[%clk 00:00:08]} {[%emt 00:00:02]} 37.
Ng3 {[%clk 00:00:22]} {[%emt 00:00:06]} hxg4 {[%clk 00:00:08]} {[%emt
00:00:02]} 38. Rc7+ {[%clk 00:00:20]} {[%emt 00:00:03]} Kd4 {[%clk 00:00:08]}
{[%emt 00:00:02]} 39. Rd7+ {[%clk 00:00:20]} {[%emt 00:00:02]} Ke5 {[%clk
00:00:08]} {[%emt 00:00:02]} 40. Rb7 {[%clk 00:00:21]} {[%emt 00:00:01]} Kd5
{[%clk 00:00:06]} {[%emt 00:00:04]} 41. Rd7+ {[%clk 00:00:21]} {[%emt
00:00:02]} Kc6 {[%clk 00:00:07]} {[%emt 00:00:01]} 42. Rd8 {[%clk 00:00:22]}
{[%emt 00:00:01]} b4 {[%clk 00:00:07]} {[%emt 00:00:02]} 43. Rb8 {[%clk
00:00:22]} {[%emt 00:00:02]} b3 {[%clk 00:00:08]} 44. Nf5 {[%clk 00:00:22]}
{[%emt 00:00:02]} Rxf5 {[%clk 00:00:08]} {[%emt 00:00:03]} 0-1

[Event "MČR v bleskovém šachu družstev 2019"]
[Site "Teplice, Czech Republic"]
[Date "2019.09.14"]
[Round "5.4"]
[White "Vymazal, Bronislav"]
[Black "Duran, Tomas"]
[Result "1-0"]
[TimeControl "3 mim. + 2 s"]
[WhiteFideId "318396"]
[WhiteElo "2309"]
[BlackElo "2135"]

1. g3 {[%clk 00:03:02]} {[%emt 00:00:01]} Nf6 {[%clk 00:03:02]} {[%emt
00:00:02]} 2. Bg2 {[%clk 00:03:03]} g6 {[%clk 00:03:03]} {[%emt 00:00:01]} 3.
f4 {[%clk 00:03:04]} {[%emt 00:00:01]} Bg7 {[%clk 00:03:04]} 4. e4 {[%clk
00:03:05]} {[%emt 00:00:01]} d6 {[%clk 00:03:03]} {[%emt 00:00:03]} 5. Nc3
{[%clk 00:03:06]} {[%emt 00:00:01]} O-O {[%clk 00:03:02]} {[%emt 00:00:03]} 6.
d4 {[%clk 00:03:06]} {[%emt 00:00:02]} e5 {[%clk 00:02:51]} {[%emt 00:00:13]} 7.
Nf3 {[%clk 00:02:58]} {[%emt 00:00:09]} Bg4 {[%clk 00:02:40]} {[%emt 00:00:13]}
8. dxe5 {[%clk 00:02:26]} {[%emt 00:00:34]} Bxf3 {[%clk 00:02:37]} {[%emt
00:00:04]} 9. Qxf3 {[%clk 00:02:24]} {[%emt 00:00:05]} dxe5 {[%clk 00:02:37]}
{[%emt 00:00:02]} 10. Be3 {[%clk 00:02:16]} {[%emt 00:00:09]} c6 {[%clk
00:02:19]} {[%emt 00:00:21]} 11. O-O {[%clk 00:01:54]} {[%emt 00:00:23]} Nbd7
{[%clk 00:02:15]} {[%emt 00:00:07]} 12. Rad1 {[%clk 00:01:48]} {[%emt
00:00:08]} Qe7 {[%clk 00:02:15]} {[%emt 00:00:02]} 13. f5 {[%clk 00:01:47]}
{[%emt 00:00:03]} b6 {[%clk 00:01:58]} {[%emt 00:00:19]} 14. g4 {[%clk
00:01:45]} {[%emt 00:00:04]} h6 {[%clk 00:01:31]} {[%emt 00:00:30]} 15. h4
{[%clk 00:01:43]} {[%emt 00:00:04]} Nh7 {[%clk 00:00:56]} {[%emt 00:00:37]} 16.
g5 {[%clk 00:00:51]} {[%emt 00:00:54]} hxg5 {[%clk 00:00:49]} {[%emt 00:00:10]}
17. hxg5 {[%clk 00:00:51]} {[%emt 00:00:01]} f6 {[%clk 00:00:49]} {[%emt
00:00:02]} 18. fxg6 {[%clk 00:00:34]} {[%emt 00:00:19]} Nxg5 {[%clk 00:00:44]}
{[%emt 00:00:07]} 19. Qh5 {[%clk 00:00:18]} {[%emt 00:00:19]} Bh8 {[%clk
00:00:37]} {[%emt 00:00:08]} 20. Rf5 {[%clk 00:00:05]} {[%emt 00:00:15]} Ne6
{[%clk 00:00:29]} {[%emt 00:00:10]} 21. Bh3 {[%clk 00:00:03]} {[%emt 00:00:04]}
Rad8 {[%clk 00:00:24]} {[%emt 00:00:07]} 22. Rdf1 {[%clk 00:00:04]} {[%emt
00:00:01]} Rfe8 {[%clk 00:00:20]} {[%emt 00:00:06]} 23. R5f3 {[%clk 00:00:05]}
{[%emt 00:00:01]} Nef8 {[%emt 00:00:05]} 24. Bf5 {[%clk 00:00:06]} Nc5 {[%clk
00:00:11]} {[%emt 00:00:09]} 25. Rh3 {[%clk 00:00:07]} Qg7 {[%clk 00:00:10]}
{[%emt 00:00:04]} 26. Bh6 {[%clk 00:00:08]} Qe7 {[%clk 00:00:11]} {[%emt
00:00:01]} 27. Bxf8 {[%emt 00:00:12]} 1-0

[Event "MČR v bleskovém šachu družstev 2019"]
[Site "Teplice, Czech Republic"]
[Date "2019.09.14"]
[Round "5.5"]
[White "Jirovsky, Milos"]
[Black "Vykouk, Jan"]
[Result "0-1"]
[TimeControl "3 mim. + 2 s"]
[WhiteTitle "GM"]
[BlackTitle "IM"]
[WhiteFideId "303224"]
[WhiteElo "2499"]
[BlackElo "2439"]

1. d4 {[%clk 00:03:04]} {[%emt 00:13:10]} Nf6 {[%clk 00:03:03]} {[%emt
00:00:01]} 2. c3 {[%clk 00:03:05]} {[%emt 00:00:01]} g6 {[%clk 00:03:03]}
{[%emt 00:00:02]} 3. Bg5 {[%clk 00:03:06]} {[%emt 00:00:01]} Bg7 {[%clk
00:03:04]} 4. Nd2 {[%clk 00:03:07]} d5 {[%clk 00:03:03]} {[%emt 00:00:04]} 5.
e3 {[%clk 00:03:08]} O-O {[%clk 00:03:03]} {[%emt 00:00:03]} 6. Bd3 {[%clk
00:03:09]} {[%emt 00:00:01]} Nbd7 {[%clk 00:03:03]} {[%emt 00:00:02]} 7. f4
{[%clk 00:03:10]} {[%emt 00:00:01]} c5 {[%clk 00:03:03]} {[%emt 00:00:02]} 8.
Ngf3 {[%clk 00:03:11]} {[%emt 00:00:01]} b6 {[%clk 00:03:00]} {[%emt 00:00:04]}
9. O-O {[%clk 00:03:11]} {[%emt 00:00:02]} Bb7 {[%clk 00:03:01]} {[%emt
00:00:02]} 10. Qe2 {[%clk 00:03:11]} {[%emt 00:00:01]} Qc7 {[%clk 00:02:53]}
{[%emt 00:00:10]} 11. a4 {[%clk 00:03:10]} {[%emt 00:00:03]} Rfe8 {[%clk
00:02:46]} {[%emt 00:00:09]} 12. Ne5 {[%clk 00:03:05]} {[%emt 00:00:08]} Ne4
{[%clk 00:02:43]} {[%emt 00:00:05]} 13. Nxe4 {[%clk 00:03:01]} {[%emt
00:00:05]} dxe4 {[%clk 00:01:40]} {[%emt 00:01:05]} 14. Bb5 {[%clk 00:02:57]}
{[%emt 00:00:06]} Bc8 {[%clk 00:01:31]} {[%emt 00:00:10]} 15. Bc6 {[%clk
00:02:49]} {[%emt 00:00:10]} Nxe5 {[%clk 00:00:55]} {[%emt 00:00:38]} 16. Bxa8
{[%clk 00:02:36]} {[%emt 00:00:15]} Bg4 {[%clk 00:00:55]} {[%emt 00:00:02]} 17.
Qc2 {[%clk 00:02:00]} {[%emt 00:00:37]} Nc4 {[%clk 00:00:55]} {[%emt 00:00:02]}
18. Qxe4 {[%clk 00:01:32]} {[%emt 00:00:30]} Nd6 {[%clk 00:00:30]} {[%emt
00:00:27]} 19. Qc6 {[%clk 00:01:08]} {[%emt 00:00:26]} Qb8 {[%clk 00:00:32]} 20.
a5 {[%clk 00:00:52]} {[%emt 00:00:18]} bxa5 {[%clk 00:00:06]} {[%emt 00:00:27]}
21. dxc5 {[%clk 00:00:44]} {[%emt 00:00:10]} Nc4 {[%clk 00:00:08]} 22. Qe4
{[%clk 00:00:30]} {[%emt 00:00:15]} Nd2 {[%clk 00:00:08]} {[%emt 00:00:02]} 23.
Qb7 {[%clk 00:00:17]} {[%emt 00:00:15]} Nxf1 {[%clk 00:00:07]} {[%emt
00:00:03]} 24. Qxb8 {[%clk 00:00:05]} {[%emt 00:00:15]} Rxb8 {[%clk 00:00:08]}
25. Be4 {[%clk 00:00:05]} {[%emt 00:00:02]} Nd2 {[%clk 00:00:05]} {[%emt
00:00:05]} 26. Bd5 {[%clk 00:00:06]} e6 {[%clk 00:00:06]} {[%emt 00:00:01]} 27.
Bc6 {[%clk 00:00:07]} {[%emt 00:00:01]} Rc8 {[%clk 00:00:07]} {[%emt 00:00:01]}
28. Ba4 {[%clk 00:00:07]} {[%emt 00:00:02]} Rxc5 {[%clk 00:00:08]} {[%emt
00:00:02]} 29. h3 {[%clk 00:00:08]} {[%emt 00:00:01]} Bf5 {[%clk 00:00:08]}
{[%emt 00:00:01]} 30. Rd1 {[%clk 00:00:09]} Rd5 {[%clk 00:00:08]} {[%emt
00:00:03]} 31. g4 {[%clk 00:00:07]} {[%emt 00:00:04]} Be4 {[%clk 00:00:08]}
{[%emt 00:00:01]} 32. b4 {[%clk 00:00:07]} {[%emt 00:00:03]} Nf3+ {[%clk
00:00:09]} 33. Kf2 {[%clk 00:00:08]} Rxd1 {[%clk 00:00:09]} {[%emt 00:00:02]}
34. Bxd1 Nxg5 {[%emt 00:00:02]} 35. fxg5 {[%clk 00:00:07]} Bxc3 {[%clk
00:00:10]} {[%emt 00:00:02]} 36. bxa5 Bxa5 {[%clk 00:00:10]} 0-1

[Event "MČR v bleskovém šachu družstev 2019"]
[Site "Teplice, Czech Republic"]
[Date "2019.09.14"]
[Round "5.6"]
[White "Studnicka, Tomas"]
[Black "Sokolov, Alexander"]
[Result "1/2-1/2"]
[TimeControl "3 mim. + 2 s"]
[WhiteTitle "IM"]
[BlackTitle "FM"]
[BlackFideId "4119177"]
[WhiteElo "2215"]
[BlackElo "2417"]

1. d4 {[%clk 00:03:03]} {[%emt 00:10:54]} Nf6 {[%clk 00:03:03]} {[%emt
00:00:01]} 2. Nf3 {[%clk 00:03:03]} {[%emt 00:00:02]} g6 {[%clk 00:03:05]}
{[%emt 00:00:01]} 3. c4 {[%clk 00:03:03]} {[%emt 00:00:02]} Bg7 {[%clk
00:03:06]} 4. Nc3 {[%clk 00:03:04]} {[%emt 00:00:01]} O-O {[%emt 00:00:02]} 5.
Bg5 h6 {[%clk 00:03:06]} {[%emt 00:00:03]} 6. Bh4 {[%clk 00:03:05]} {[%emt
00:00:02]} c5 {[%clk 00:03:04]} {[%emt 00:00:04]} 7. d5 {[%clk 00:03:06]}
{[%emt 00:00:01]} d6 {[%clk 00:03:04]} {[%emt 00:00:02]} 8. e3 {[%clk
00:03:02]} {[%emt 00:00:06]} e6 {[%clk 00:03:03]} {[%emt 00:00:03]} 9. Be2
{[%clk 00:03:02]} {[%emt 00:00:03]} exd5 {[%clk 00:03:03]} {[%emt 00:00:02]} 10.
cxd5 {[%clk 00:03:02]} {[%emt 00:00:01]} a6 {[%clk 00:03:02]} {[%emt 00:00:02]}
11. a4 {[%clk 00:03:04]} Bg4 {[%clk 00:03:01]} {[%emt 00:00:03]} 12. O-O {[%clk
00:03:01]} {[%emt 00:00:04]} Re8 {[%clk 00:03:01]} {[%emt 00:00:02]} 13. Nd2
{[%clk 00:02:58]} {[%emt 00:00:06]} Bxe2 {[%clk 00:03:01]} {[%emt 00:00:02]} 14.
Qxe2 {[%clk 00:02:58]} {[%emt 00:00:02]} Nbd7 {[%clk 00:03:02]} {[%emt
00:00:01]} 15. a5 {[%clk 00:02:33]} {[%emt 00:00:27]} Qc7 {[%clk 00:02:52]}
{[%emt 00:00:11]} 16. Nc4 {[%clk 00:02:25]} {[%emt 00:00:10]} b5 {[%clk
00:02:49]} {[%emt 00:00:05]} 17. axb6 {[%clk 00:02:21]} {[%emt 00:00:06]} Nxb6
{[%clk 00:02:50]} {[%emt 00:00:01]} 18. Bg3 {[%clk 00:02:19]} {[%emt 00:00:03]}
Nxc4 {[%clk 00:02:41]} {[%emt 00:00:11]} 19. Qxc4 {[%clk 00:02:20]} {[%emt
00:00:01]} Qb6 {[%clk 00:02:39]} {[%emt 00:00:04]} 20. Na4 {[%clk 00:02:04]}
{[%emt 00:00:18]} Qb5 {[%clk 00:02:08]} {[%emt 00:00:33]} 21. Qc2 {[%clk
00:01:20]} {[%emt 00:00:46]} Ne4 {[%clk 00:01:46]} {[%emt 00:00:24]} 22. Nc3
{[%clk 00:01:06]} {[%emt 00:00:17]} Bxc3 {[%clk 00:01:25]} {[%emt 00:00:23]} 23.
bxc3 {[%clk 00:01:05]} {[%emt 00:00:03]} Nxg3 {[%clk 00:01:26]} {[%emt
00:00:02]} 24. hxg3 {[%clk 00:01:03]} {[%emt 00:00:04]} Qc4 {[%clk 00:01:15]}
{[%emt 00:00:13]} 25. Rfd1 {[%clk 00:01:02]} {[%emt 00:00:03]} Reb8 {[%clk
00:01:12]} {[%emt 00:00:05]} 26. Ra4 {[%clk 00:01:03]} Qb3 {[%clk 00:01:11]}
{[%emt 00:00:04]} 27. Qxb3 {[%clk 00:00:46]} {[%emt 00:00:19]} Rxb3 {[%clk
00:01:12]} {[%emt 00:00:01]} 28. c4 {[%clk 00:00:47]} Rb4 {[%clk 00:01:07]}
{[%emt 00:00:07]} 29. Rda1 {[%clk 00:00:49]} Rxa4 {[%clk 00:01:03]} {[%emt
00:00:07]} 30. Rxa4 {[%clk 00:00:50]} a5 {[%clk 00:01:04]} {[%emt 00:00:01]} 31.
f4 {[%clk 00:00:44]} {[%emt 00:00:08]} f5 {[%clk 00:01:03]} {[%emt 00:00:03]}
32. Kf2 {[%clk 00:00:45]} {[%emt 00:00:01]} Kf7 {[%clk 00:01:04]} {[%emt
00:00:01]} 33. Kf3 {[%clk 00:00:46]} h5 {[%clk 00:00:59]} {[%emt 00:00:07]} 34.
e4 {[%clk 00:00:47]} Kf6 {[%clk 00:01:01]} 35. Ke3 {[%clk 00:00:26]} {[%emt
00:00:24]} g5 {[%clk 00:00:47]} {[%emt 00:00:16]} 36. Kf3 {[%clk 00:00:18]}
{[%emt 00:00:10]} Ra7 {[%clk 00:00:46]} {[%emt 00:00:02]} 37. Ke3 {[%clk
00:00:19]} {[%emt 00:00:01]} Re7 {[%clk 00:00:44]} {[%emt 00:00:04]} 38. e5+
{[%clk 00:00:18]} {[%emt 00:00:04]} dxe5 {[%clk 00:00:45]} {[%emt 00:00:02]} 39.
Rxa5 {[%clk 00:00:19]} exf4+ {[%clk 00:00:44]} {[%emt 00:00:03]} 40. Kf3 {[%clk
00:00:19]} {[%emt 00:00:01]} Re3+ {[%clk 00:00:45]} {[%emt 00:00:01]} 41. Kf2
{[%clk 00:00:21]} Rxg3 {[%clk 00:00:41]} {[%emt 00:00:08]} 42. Rxc5 {[%clk
00:00:21]} Rc3 {[%clk 00:00:41]} {[%emt 00:00:02]} 43. Rc6+ {[%clk 00:00:21]}
{[%emt 00:00:03]} Ke5 {[%clk 00:00:26]} {[%emt 00:00:17]} 44. d6 {[%clk
00:00:22]} {[%emt 00:00:01]} Rc2+ {[%clk 00:00:23]} {[%emt 00:00:05]} 45. Kg1
{[%clk 00:00:21]} {[%emt 00:00:03]} Rc1+ {[%clk 00:00:17]} {[%emt 00:00:08]} 46.
Kf2 {[%clk 00:00:22]} Rc2+ {[%clk 00:00:13]} {[%emt 00:00:06]} 47. Kg1 {[%clk
00:00:24]} Rc1+ {[%emt 00:00:20]} 48. c5 {[%emt 00:00:02]} Ke6+ 49. Kf1 {[%emt
00:00:17]} 1/2-1/2